fUSD/lending_fUSD_20240227
["ID","MTS","AMOUNT","RATE_DAILY","PERIOD"]
[315446975,1709039518354,-748.55,0.00022999,2]
[315446976,1709039518380,-997.1,0.00022999,2]
[315446977,1709039518403,-748.55,0.00022999,2]
[315446978,1709039518427,-997.1,0.00022999,2]
[315446979,1709039518452,-748.73,0.00022999,2]
[315446980,1709039518479,-997.1,0.00022999,2]
[315446981,1709039518503,-997.1,0.00022999,2]
[315446982,1709039518530,-997.1,0.00022999,2]
[315446983,1709039518554,-500.0,0.00022999,2]
[315446984,1709039518578,-500.0,0.00022999,2]
[315446985,1709039518601,-500.0,0.00022999,2]
[315446986,1709039518624,-500.0,0.00022999,2]
[315446987,1709039518647,-500.0,0.00022999,2]
[315446988,1709039518671,-500.0,0.00022999,2]
[315446989,1709039518694,-500.0,0.00022999,2]
[315446990,1709039518718,-500.0,0.00022999,2]
[315446991,1709039518743,-500.0,0.00022999,2]
[315446992,1709039518767,-500.0,0.00022999,2]
[315446993,1709039518794,-500.0,0.00022999,2]
[315446994,1709039518819,-500.0,0.00022999,2]
[315446995,1709039518847,-500.0,0.00022999,2]
[315446996,1709039518882,-1652.2,0.00022999,2]
[315446997,1709039518910,-1652.2,0.00022999,2]
[315446998,1709039518942,-500.0,0.00022999,2]
[315446999,1709039518976,-1652.2,0.00022999,2]
[315447000,1709039519004,-150.53530881,0.00023,2]
[315447001,1709039519032,-437.08143572,0.00023,2]
[315447002,1709039519059,-150.0,0.00023,2]
[315447003,1709039519085,-163.02,0.00023027,2]
[315447004,1709039519110,-846.6,0.00023027,2]
[315447005,1709039519135,-500.0,0.00023027,2]
[315447006,1709039519160,-150.53530881,0.000231,2]
[315447007,1709039519189,-1245.00651174,0.00023114,2]
[315447008,1709039519214,-150.53530881,0.000232,2]
[315447009,1709039519243,-1245.00651174,0.00023271,2]
[315447010,1709039519269,-2440.25684995,0.0002328,2]
[315447011,1709039519294,-150.53530881,0.000233,2]
[315447012,1709039519322,-2958.48,0.00023338,2]
[315447013,1709039519346,-500.0,0.00023338,2]
[315447014,1709039519372,-1979.9,0.00023338,2]
[315447015,1709039519396,-1675.9,0.00023338,2]
[315447016,1709039519420,-500.0,0.00023338,2]
[315447017,1709039519448,-150.53530881,0.000234,2]
[315447018,1709039519473,-1245.00651174,0.00023428,2]
[315447019,1709039519498,-150.53530881,0.000235,2]
[315447020,1709039519521,-418.42481626,0.0002352,2]
[315447021,1709039519544,-1245.00651174,0.00023585,2]
[315447022,1709039519569,-150.53530881,0.000236,2]
[315447023,1709039519598,-150.53530881,0.000237,2]
[315447024,1709039519622,-1245.00651174,0.00023743,2]
[315447025,1709039519646,-152.9106692,0.0002376,2]
[315447026,1709039519671,-500.0,0.00023797,2]
[315447027,1709039519698,-500.0,0.00023797,2]
[315447028,1709039519721,-500.0,0.00023797,2]
[315447029,1709039519751,-997.1,0.00023797,2]
[315447030,1709039519777,-150.53530881,0.000238,2]
[315447031,1709039519803,-300.0,0.00023835,2]
[315447032,1709039519831,-500.0,0.00023891,2]
[315447033,1709039519855,-210.31134566,0.00023897,2]
[315447034,1709039519879,-210.31134565,0.00023899,2]
[315447035,1709039519904,-2958.48,0.00023899,2]
[315447036,1709039519928,-846.6,0.00023899,2]
[315447037,1709039519952,-397.56,0.00023899,2]
[315447038,1709039519978,-1979.9,0.00023899,2]
[315447039,1709039520002,-1675.9,0.00023899,2]
[315447040,1709039520027,-500.0,0.00023899,2]
[315447041,1709039520052,-500.0,0.00023899,2]
[315447042,1709039520076,-150.53530881,0.000239,2]
[315447043,1709039520099,-1039.87857745,0.000239,2]
[315447044,1709039520123,-345.29142072,0.000239,2]
[315447045,1709039520146,-210.31134565,0.000239,2]
[315447046,1709039520170,-1245.00651174,0.000239,2]
[315447047,1709039520200,-150.0,0.00023938,2]
[315447048,1709039520224,-500.0,0.00023983,2]
[315447049,1709039520247,-500.0,0.00023983,2]
[315447050,1709039520272,-500.0,0.00023983,2]
[315447051,1709039520307,-997.1,0.00023983,2]
[315447052,1709039520338,-19216.47059581,0.00023995,2]
[315447053,1709039530590,212.51270952,0.00021978,2]
[315447054,1709039530959,212.51270952,0.00021987,2]
[315447055,1709039531282,212.51270952,0.0002199,2]
[315447056,1709039531656,212.51270952,0.00021988,2]
[315447057,1709039558356,500.0,0.0002126,2]
[315447058,1709039559299,500.0,0.00021808,2]
[315447059,1709039560204,500.0,0.00022356,2]
[315447060,1709039562576,250.0,0.00022475,2]
[315447061,1709039572226,23900.0,0.00022375,2]
[315447062,1709039622459,250.0,0.00022158,2]
[315447063,1709039633710,166.1,0.00022204,2]
[315447065,1709039642170,500.0,0.0002126,2]
[315447066,1709039643155,500.0,0.00022356,2]
[315447067,1709039666390,151.0,0.00028629,120]
[315447068,1709039668140,368.22,0.00022031,2]
[315447069,1709039719744,500.0,0.0002126,2]
[315447070,1709039720630,500.0,0.00022356,2]
[315447071,1709039798648,500.0,0.0002126,2]
[315447072,1709039800087,500.0,0.00022356,2]
[315447073,1709039805027,2000.0,0.00021935,2]
[315447075,1709039823462,174.390067,0.00022131,2]
[315447076,1709039830180,2379.5652265,0.0002199,2]
[315447077,1709039830503,2379.5652265,0.00021993,2]
[315447078,1709039831005,2379.5652265,0.00021988,2]
[315447079,1709039831268,2379.5652265,0.00021982,2]
[315447080,1709039844733,2563.0,0.000222,2]
[315447081,1709039845248,2435.0,0.000222,2]
[315447082,1709039847388,211.74,0.00021906,2]
[315447083,1709039855920,472.79,0.00019988,2]
[315447084,1709039856153,472.79,0.00022252,2]
[315447085,1709039860782,3105.42370654,0.00021985,2]
[315447086,1709039861153,3105.42370654,0.00021984,2]
[315447087,1709039861513,3105.42370654,0.00022,2]
[315447088,1709039862065,3105.42370654,0.00021991,2]
[315447089,1709039872311,500.0,0.0002126,2]
[315447090,1709039873639,500.0,0.00022356,2]
[315447091,1709039890541,4617.66568091,0.00021986,2]
[315447092,1709039890879,4617.66568091,0.00021994,2]
[315447093,1709039891174,4617.66568091,0.00021988,2]
[315447094,1709039891529,4617.66568091,0.00021993,2]
[315447095,1709039911843,2751.0,0.00021912,2]
[315447096,1709039920680,1117.9525344,0.00021979,2]
[315447097,1709039921017,1117.9525344,0.00021978,2]
[315447098,1709039921373,1117.9525344,0.00021992,2]
[315447099,1709039921656,1117.9525344,0.0002198,2]
[315447100,1709039924093,150.0,0.00021999,2]
[315447101,1709039935068,536.88,0.0002191,2]
[315447102,1709039935644,320.67377496,0.00022439,2]
[315447103,1709039941648,320.67377496,0.00022489,2]
[315447104,1709039944661,636.00629878,0.0002126,2]
[315447105,1709039949548,1662.35964518,0.00021983,2]
[315447106,1709039949853,1662.35964518,0.00021984,2]
[315447107,1709039950334,1662.35964518,0.00021984,2]
[315447108,1709039950686,1662.35964518,0.00021987,2]
[315447109,1709039973950,152.07,0.00022062,2]
[315447110,1709039980083,402.46291243,0.00021985,2]
[315447111,1709039980428,402.46291243,0.00021988,2]
[315447112,1709039980746,402.46291243,0.00021997,2]
[315447113,1709039981049,402.46291243,0.00021981,2]
[315447114,1709039992806,278.47023468,0.00021978,2]
[315447115,1709040000960,366.6252032,0.00022739,30]
[315447116,1709040000985,640.85165021,0.00022739,30]
[315447117,1709040011596,250.0,0.00021911,2]
[315447118,1709040011646,598.44947231,0.00022,2]
[315447119,1709040011965,598.44947231,0.00021998,2]
[315447120,1709040012487,598.44947231,0.00021992,2]
[315447121,1709040012862,598.44947231,0.00021989,2]
[315447122,1709040031374,152.0,0.00021537,2]
[315447123,1709040032004,152.0,0.00021537,2]
[315447125,1709040042089,209.28071447,0.00021992,2]
[315447126,1709040042455,209.28071447,0.00021992,2]
[315447127,1709040042822,209.28071447,0.00021994,2]
[315447128,1709040043200,209.28071447,0.00021999,2]
[315447129,1709040046626,151.0,0.00028729,120]
[315447130,1709040054482,162.0,0.00021537,2]
[315447131,1709040060745,1000.0,0.00021902,2]
[315447133,1709040063860,396.17,0.00021902,2]
[315447134,1709040066687,159.83,0.00021902,10]
[315447135,1709040072742,250.0,0.00021893,2]
[315447136,1709040073397,215.44181008,0.00021995,2]
[315447137,1709040073767,215.44181008,0.00021987,2]
[315447138,1709040074095,215.44181008,0.00021999,2]
[315447139,1709040074493,215.44181008,0.0002198,2]
[315447140,1709040075080,200.0,0.00021893,2]
[315447141,1709040144267,160.22,0.00021918,2]
[315447142,1709040144481,160.22,0.00022137,2]
[315447143,1709040144735,160.22,0.00022356,2]
[315447144,1709040154279,160.53243369,0.00022439,2]
[315447145,1709040250259,500.0,0.00021999,2]
[315447146,1709040257008,160.33688748,0.00022438,2]
[315447147,1709040259254,269.20887909,0.00021835,2]
[315447148,1709040259277,196.08112091,0.00021835,2]
[315447149,1709040323886,425.51,0.00019909,2]
[315447150,1709040324105,307.95464566,0.00022173,2]
[315447151,1709040324137,117.55535434,0.00022173,2]
[315447152,1709040330851,162.92543913,0.00022,15]
[315447153,1709040353677,2000.0,0.0002184,2]
[315447154,1709040354803,188.24,0.0002184,2]
[315447155,1709040357028,344142.89415623,0.00021835,2]
[315447157,1709040395546,2030.32,0.00021835,2]
[315447159,1709040484620,216.96,0.00021819,2]
[315447160,1709040489130,151.0,0.00028845,120]
[315447161,1709040496281,250.0,0.00021815,2]
[315447162,1709040509373,250.0,0.000192,2]
[315447163,1709040523338,200.0,0.00021835,2]
[315447164,1709040526654,250.0,0.00021806,2]
[315447165,1709040547465,192.82,0.00021835,10]
[315447169,1709040572426,160.33688748,0.00022438,2]
[315447170,1709040590805,150.0,0.000262,120]
[315447172,1709040617231,157.87,0.00021982,2]
[315447173,1709040631477,189.92449176,0.00022104,3]
[315447182,1709040632715,-174.390067,0.000225,2]
[315447183,1709040632725,-162.90262376,0.000225,2]
[315447184,1709040632734,-738.54058352,0.00022538,2]
[315447185,1709040632743,-162.90262376,0.00022538,2]
[315447186,1709040632752,-157.87,0.00022555,2]
[315447187,1709040632762,-160.22,0.00022575,2]
[315447188,1709040632771,-2511.15,0.0002263,2]
[315447189,1709040632781,-152.0,0.00022633,2]
[315447190,1709040632790,-152.0,0.00022633,2]
[315447191,1709040632799,-162.0,0.00022633,2]
[315447192,1709040632808,-14545.1103,0.00022639,2]
[315447193,1709040632817,-1000.0,0.00022639,2]
[315447194,1709040632827,-1000.0,0.00022639,2]
[315447195,1709040632836,-12629.3761,0.00022639,2]
[315447197,1709040632845,-71117.4821,0.00022639,2]
[315447199,1709040632855,-3530.3038,0.00022639,2]
[315447201,1709040632864,-222.12452328,0.00022639,2]
[315447203,1709040632873,-499.99,0.00022729,2]
[315447205,1709040632882,-749.56,0.00022729,3]
[315447208,1709040632903,-374.78,0.00022729,3]
[315447210,1709040632914,-187.39,0.00022729,3]
[315447212,1709040632923,-562.21,0.00022729,3]
[315447214,1709040632932,-243.5002963,0.00022737,2]
[315447216,1709040632943,-461.51672541,0.00022738,2]
[315447219,1709040632952,-99312.78157778,0.00022738,2]
[315447221,1709040632962,-478.71068578,0.00022739,2]
[315447223,1709040632972,-498.4511,0.00022739,2]
[315447225,1709040632981,-500.0,0.00022739,2]
[315447227,1709040632990,-500.0,0.00022739,2]
[315447228,1709040633000,-500.0,0.00022739,2]
[315447230,1709040633010,-500.0,0.00022739,2]
[315447232,1709040633020,-500.0,0.00022739,2]
[315447233,1709040633029,-500.0,0.00022739,2]
[315447234,1709040633039,-500.0,0.00022739,2]
[315447235,1709040633048,-500.0,0.00022739,2]
[315447236,1709040633058,-500.0,0.00022739,2]
[315447237,1709040633068,-500.0,0.00022739,2]
[315447238,1709040633078,-500.0,0.00022739,2]
[315447239,1709040633087,-421.65361708,0.00022739,2]
[315447240,1709040633097,-500.0,0.00022739,2]
[315447241,1709040633108,-500.0,0.00022739,2]
[315447242,1709040633118,-500.0,0.00022739,2]
[315447243,1709040633129,-500.0,0.00022739,2]
[315447244,1709040633138,-500.0,0.00022739,2]
[315447245,1709040633149,-500.0,0.00022739,2]
[315447246,1709040633159,-500.0,0.00022739,2]
[315447247,1709040633168,-335.46766919,0.00022739,2]
[315447248,1709040633178,-500.0,0.00022739,2]
[315447249,1709040633188,-500.0,0.00022739,2]
[315447250,1709040633199,-537.12878806,0.00022739,2]
[315447251,1709040633211,-439.79192351,0.00022739,2]
[315447252,1709040633221,-181.72406685,0.00022739,2]
[315447253,1709040633230,-500.0,0.00022739,2]
[315447254,1709040633241,-177.66065642,0.00022739,2]
[315447255,1709040633251,-249.08408276,0.00022739,2]
[315447256,1709040633260,-503.31515871,0.00022739,2]
[315447257,1709040633270,-500.0,0.00022739,2]
[315447258,1709040633280,-500.0,0.00022739,2]
[315447259,1709040633289,-500.0,0.00022739,2]
[315447260,1709040633299,-500.0,0.00022739,2]
[315447261,1709040633309,-534.27672967,0.00022739,2]
[315447262,1709040633318,-500.0,0.00022739,2]
[315447263,1709040633332,-500.0,0.00022739,2]
[315447264,1709040633342,-500.0,0.00022739,2]
[315447265,1709040633352,-500.0,0.00022739,2]
[315447266,1709040633362,-517.40496572,0.00022739,2]
[315447267,1709040633372,-500.0,0.00022739,2]
[315447268,1709040633381,-500.0,0.00022739,2]
[315447269,1709040633391,-500.0,0.00022739,2]
[315447270,1709040633404,-303.75,0.00022739,2]
[315447271,1709040633414,-502.07148024,0.00022739,2]
[315447272,1709040633424,-299.44087676,0.00022739,2]
[315447273,1709040633433,-500.0,0.00022739,2]
[315447274,1709040633444,-500.0,0.00022739,2]
[315447275,1709040633454,-341.06577392,0.00022739,2]
[315447276,1709040633463,-500.0,0.00022739,2]
[315447277,1709040633473,-500.0,0.00022739,2]
[315447278,1709040633483,-500.0,0.00022739,2]
[315447279,1709040633495,-500.0,0.00022739,2]
[315447280,1709040633504,-434.62877798,0.00022739,2]
[315447281,1709040633514,-500.0,0.00022739,2]
[315447282,1709040633524,-500.0,0.00022739,2]
[315447283,1709040633533,-500.0,0.00022739,2]
[315447284,1709040633543,-500.0,0.00022739,2]
[315447285,1709040633553,-500.0,0.00022739,2]
[315447286,1709040633562,-500.0,0.00022739,2]
[315447287,1709040633572,-500.0,0.00022739,2]
[315447288,1709040633582,-500.0,0.00022739,2]
[315447289,1709040633592,-500.0,0.00022739,2]
[315447290,1709040633605,-500.0,0.00022739,2]
[315447291,1709040633615,-500.0,0.00022739,2]
[315447292,1709040633624,-500.0,0.00022739,2]
[315447293,1709040633634,-500.0,0.00022739,2]
[315447294,1709040633644,-500.0,0.00022739,2]
[315447295,1709040633657,-521.9469845,0.00022739,2]
[315447296,1709040633667,-500.0,0.00022739,2]
[315447297,1709040633676,-500.0,0.00022739,2]
[315447298,1709040633686,-500.0,0.00022739,2]
[315447299,1709040633696,-500.0,0.00022739,2]
[315447300,1709040633706,-500.0,0.00022739,2]
[315447301,1709040633716,-560.32,0.00022739,2]
[315447302,1709040633725,-560.32,0.00022739,2]
[315447303,1709040633735,-500.0,0.00022739,2]
[315447304,1709040633745,-500.0,0.00022739,2]
[315447305,1709040633754,-500.0,0.00022739,2]
[315447306,1709040633763,-500.0,0.00022739,2]
[315447307,1709040633773,-625.21,0.00022739,2]
[315447308,1709040633782,-522.5031394,0.00022739,2]
[315447309,1709040633792,-500.0,0.00022739,2]
[315447310,1709040633802,-500.0,0.00022739,2]
[315447311,1709040633812,-611.42982332,0.00022739,2]
[315447312,1709040633821,-500.0,0.00022739,2]
[315447313,1709040633831,-500.0,0.00022739,2]
[315447314,1709040633840,-500.0,0.00022739,2]
[315447315,1709040633850,-590.3,0.00022739,2]
[315447316,1709040633859,-590.3,0.00022739,2]
[315447317,1709040633869,-500.0,0.00022739,2]
[315447318,1709040633882,-527.94196937,0.00022739,2]
[315447319,1709040633892,-500.0,0.00022739,2]
[315447320,1709040633905,-500.0,0.00022739,2]
[315447321,1709040633915,-500.0,0.00022739,2]
[315447322,1709040633924,-500.0,0.00022739,2]
[315447323,1709040633934,-500.0,0.00022739,2]
[315447324,1709040633943,-500.0,0.00022739,2]
[315447325,1709040633953,-500.0,0.00022739,2]
[315447326,1709040633962,-500.0,0.00022739,2]
[315447327,1709040633971,-500.0,0.00022739,2]
[315447328,1709040633981,-500.0,0.00022739,2]
[315447329,1709040633990,-500.0,0.00022739,2]
[315447330,1709040634000,-1000.0,0.00022739,7]
[315447331,1709040634010,-500.0,0.00022739,2]
[315447332,1709040634020,-191.56478256,0.00022739,2]
[315447333,1709040634029,-500.0,0.00022739,2]
[315447334,1709040634039,-500.0,0.00022739,2]
[315447335,1709040634048,-535.59,0.00022739,2]
[315447336,1709040634058,-500.0,0.00022739,2]
[315447337,1709040634067,-535.59,0.00022739,2]
[315447338,1709040634077,-625.48,0.00022739,2]
[315447339,1709040634086,-533.99681025,0.00022739,2]
[315447340,1709040634096,-500.0,0.00022739,2]
[315447341,1709040634106,-500.0,0.00022739,2]
[315447342,1709040634116,-500.0,0.00022739,2]
[315447343,1709040634129,-273.31575616,0.00022739,2]
[315447344,1709040634138,-500.0,0.00022739,2]
[315447345,1709040634148,-500.0,0.00022739,2]
[315447346,1709040634159,-304.59588351,0.00022739,2]
[315447347,1709040634169,-500.0,0.00022739,2]
[315447348,1709040634178,-500.0,0.00022739,2]
[315447349,1709040634188,-500.0,0.00022739,2]
[315447350,1709040634198,-500.0,0.00022739,2]
[315447351,1709040634208,-500.0,0.00022739,2]
[315447352,1709040634218,-500.0,0.00022739,2]
[315447353,1709040634228,-500.0,0.00022739,2]
[315447354,1709040634238,-500.0,0.00022739,2]
[315447355,1709040634247,-500.0,0.00022739,2]
[315447356,1709040634257,-500.0,0.00022739,2]
[315447357,1709040634267,-500.0,0.00022739,2]
[315447358,1709040634277,-189.43522575,0.00022739,2]
[315447359,1709040634286,-500.0,0.00022739,2]
[315447360,1709040634297,-500.0,0.00022739,2]
[315447361,1709040634307,-151.8173568,0.00022739,2]
[315447362,1709040634316,-527.20356496,0.00022739,2]
[315447363,1709040634326,-500.0,0.00022739,2]
[315447364,1709040634335,-500.0,0.00022739,2]
[315447365,1709040634345,-500.0,0.00022739,2]
[315447366,1709040634354,-500.0,0.00022739,2]
[315447367,1709040634364,-500.0,0.00022739,2]
[315447368,1709040634373,-500.0,0.00022739,2]
[315447369,1709040634382,-247.2,0.00022739,2]
[315447370,1709040634391,-500.0,0.00022739,2]
[315447371,1709040634402,-500.0,0.00022739,2]
[315447372,1709040634412,-500.0,0.00022739,2]
[315447373,1709040634421,-500.0,0.00022739,2]
[315447374,1709040634430,-500.0,0.00022739,2]
[315447375,1709040634440,-213.85,0.00022739,2]
[315447376,1709040634450,-500.0,0.00022739,2]
[315447377,1709040634459,-500.0,0.00022739,2]
[315447378,1709040634468,-500.0,0.00022739,2]
[315447379,1709040634477,-500.0,0.00022739,2]
[315447380,1709040634487,-500.0,0.00022739,2]
[315447381,1709040634497,-332.07,0.00022739,2]
[315447382,1709040634506,-555.02,0.00022739,2]
[315447383,1709040634516,-500.0,0.00022739,2]
[315447384,1709040634525,-500.0,0.00022739,2]
[315447385,1709040634534,-500.0,0.00022739,2]
[315447386,1709040634543,-500.0,0.00022739,2]
[315447387,1709040634553,-500.0,0.00022739,2]
[315447388,1709040634564,-500.0,0.00022739,2]
[315447389,1709040634574,-500.0,0.00022739,2]
[315447390,1709040634584,-500.0,0.00022739,2]
[315447391,1709040634594,-500.0,0.00022739,2]
[315447392,1709040634604,-500.0,0.00022739,2]
[315447393,1709040634615,-500.0,0.00022739,2]
[315447394,1709040634625,-500.0,0.00022739,2]
[315447395,1709040634635,-500.0,0.00022739,2]
[315447396,1709040634644,-500.0,0.00022739,2]
[315447397,1709040634656,-500.0,0.00022739,2]
[315447398,1709040634666,-500.0,0.00022739,2]
[315447399,1709040634675,-500.0,0.00022739,2]
[315447400,1709040634684,-619.999179,0.00022739,2]
[315447401,1709040634694,-500.0,0.00022739,2]
[315447402,1709040634713,-500.0,0.00022739,2]
[315447403,1709040634723,-500.0,0.00022739,2]
[315447404,1709040634734,-500.0,0.00022739,2]
[315447405,1709040634744,-500.0,0.00022739,2]
[315447406,1709040634754,-609.64884994,0.00022739,2]
[315447407,1709040634764,-500.0,0.00022739,2]
[315447408,1709040634774,-500.0,0.00022739,2]
[315447409,1709040634785,-500.0,0.00022739,2]
[315447410,1709040634794,-500.0,0.00022739,2]
[315447411,1709040634804,-500.0,0.00022739,2]
[315447412,1709040634814,-500.0,0.00022739,2]
[315447413,1709040634824,-195.98181544,0.00022739,2]
[315447414,1709040634834,-500.0,0.00022739,2]
[315447415,1709040634844,-500.0,0.00022739,2]
[315447416,1709040634854,-500.0,0.00022739,2]
[315447417,1709040634865,-500.0,0.00022739,2]
[315447418,1709040634874,-500.0,0.00022739,2]
[315447419,1709040634884,-500.0,0.00022739,2]
[315447420,1709040634894,-500.0,0.00022739,2]
[315447421,1709040634906,-500.0,0.00022739,2]
[315447422,1709040634916,-500.0,0.00022739,2]
[315447423,1709040634944,-500.0,0.00022739,2]
[315447424,1709040634958,-500.0,0.00022739,2]
[315447425,1709040634969,-500.0,0.00022739,2]
[315447426,1709040634979,-500.0,0.00022739,2]
[315447427,1709040634989,-500.0,0.00022739,2]
[315447428,1709040634998,-500.0,0.00022739,2]
[315447429,1709040635008,-500.0,0.00022739,2]
[315447430,1709040635018,-500.0,0.00022739,2]
[315447431,1709040635029,-566.00306004,0.00022739,2]
[315447432,1709040635040,-500.0,0.00022739,2]
[315447433,1709040635051,-500.0,0.00022739,2]
[315447434,1709040635061,-500.0,0.00022739,2]
[315447435,1709040635070,-500.0,0.00022739,2]
[315447436,1709040635080,-500.0,0.00022739,2]
[315447437,1709040635090,-500.0,0.00022739,2]
[315447438,1709040635101,-500.0,0.00022739,2]
[315447439,1709040635113,-500.0,0.00022739,2]
[315447440,1709040635124,-563.86,0.00022739,2]
[315447441,1709040635138,-573.19,0.00022739,2]
[315447442,1709040635149,-573.19,0.00022739,2]
[315447443,1709040635162,-500.0,0.00022739,2]
[315447444,1709040635173,-500.0,0.00022739,2]
[315447445,1709040635183,-500.0,0.00022739,2]
[315447446,1709040635193,-500.0,0.00022739,2]
[315447447,1709040635203,-625.4,0.00022739,2]
[315447448,1709040635214,-625.4,0.00022739,2]
[315447449,1709040635225,-500.0,0.00022739,2]
[315447450,1709040635235,-517.68,0.00022739,2]
[315447451,1709040635244,-500.0,0.00022739,2]
[315447452,1709040635255,-500.0,0.00022739,2]
[315447453,1709040635268,-417.32,0.00022739,2]
[315447454,1709040635278,-500.0,0.00022739,2]
[315447455,1709040635288,-315.34445263,0.00022739,2]
[315447456,1709040635299,-500.0,0.00022739,2]
[315447457,1709040635310,-500.0,0.00022739,2]
[315447458,1709040635321,-500.0,0.00022739,2]
[315447459,1709040635332,-500.0,0.00022739,2]
[315447460,1709040635343,-562.98,0.00022739,2]
[315447461,1709040635354,-562.98,0.00022739,2]
[315447462,1709040635365,-500.0,0.00022739,2]
[315447463,1709040635376,-500.0,0.00022739,2]
[315447464,1709040635387,-500.0,0.00022739,2]
[315447465,1709040635397,-512.87454362,0.00022739,2]
[315447466,1709040635412,-500.0,0.00022739,2]
[315447467,1709040635423,-150.0,0.00022739,2]
[315447468,1709040635433,-520.84932787,0.00022739,2]
[315447469,1709040635443,-150.0,0.00022739,2]
[315447470,1709040635453,-500.0,0.00022739,2]
[315447471,1709040635463,-542.55,0.00022739,2]
[315447472,1709040635474,-500.0,0.00022739,2]
[315447473,1709040635485,-500.0,0.00022739,2]
[315447474,1709040635495,-500.0,0.00022739,2]
[315447475,1709040635506,-500.0,0.00022739,2]
[315447476,1709040635517,-553.99542941,0.00022739,2]
[315447477,1709040635528,-500.0,0.00022739,2]
[315447478,1709040635540,-500.0,0.00022739,2]
[315447479,1709040635552,-509.85817648,0.00022739,2]
[315447480,1709040635562,-500.0,0.00022739,2]
[315447481,1709040635573,-500.0,0.00022739,2]
[315447482,1709040635583,-500.0,0.00022739,2]
[315447483,1709040635593,-500.0,0.00022739,2]
[315447484,1709040635603,-500.0,0.00022739,2]
[315447485,1709040635613,-500.0,0.00022739,2]
[315447486,1709040635622,-500.0,0.00022739,2]
[315447487,1709040635632,-388.07,0.00022739,2]
[315447488,1709040635642,-500.0,0.00022739,2]
[315447489,1709040635655,-500.0,0.00022739,2]
[315447490,1709040635664,-500.0,0.00022739,2]
[315447491,1709040635674,-500.0,0.00022739,2]
[315447492,1709040635684,-500.0,0.00022739,2]
[315447493,1709040635693,-500.0,0.00022739,2]
[315447494,1709040635703,-504.6985488,0.00022739,2]
[315447495,1709040635713,-500.0,0.00022739,2]
[315447496,1709040635723,-500.0,0.00022739,2]
[315447497,1709040635733,-500.0,0.00022739,2]
[315447498,1709040635743,-534.0571112,0.00022739,2]
[315447499,1709040635753,-500.0,0.00022739,2]
[315447500,1709040635763,-551.41796048,0.00022739,2]
[315447501,1709040635773,-523.41021704,0.00022739,2]
[315447502,1709040635783,-500.0,0.00022739,2]
[315447503,1709040635796,-500.0,0.00022739,2]
[315447504,1709040635806,-500.0,0.00022739,2]
[315447505,1709040635816,-500.0,0.00022739,2]
[315447506,1709040635826,-500.0,0.00022739,2]
[315447507,1709040635836,-500.0,0.00022739,2]
[315447508,1709040635846,-500.0,0.00022739,2]
[315447509,1709040635855,-500.0,0.00022739,2]
[315447510,1709040635865,-518.69948914,0.00022739,2]
[315447511,1709040635875,-500.0,0.00022739,2]